fUST/lending_fUST_20240618
["ID","MTS","AMOUNT","RATE_DAILY","PERIOD"]
[329801751,1718682562028,-153.0,0.00018892,2]
[329801752,1718682562048,-153.0,0.00018892,2]
[329801753,1718682562068,-153.0,0.00018892,2]
[329801754,1718682562088,-153.0,0.00018892,2]
[329801755,1718682562107,-153.0,0.00018892,2]
[329801756,1718682562129,-153.0,0.00018892,2]
[329801757,1718682562150,-153.0,0.00018892,2]
[329801758,1718682562170,-153.0,0.00018892,2]
[329801759,1718682562190,-153.0,0.00018892,2]
[329801760,1718682562210,-153.0,0.00018892,2]
[329801761,1718682562229,-153.0,0.00018893,2]
[329801762,1718682562249,-153.0,0.00018893,2]
[329801763,1718682562273,-153.0,0.00018893,2]
[329801764,1718682562295,-153.0,0.00018893,2]
[329801765,1718682562320,-153.0,0.00018893,2]
[329801766,1718682562343,-153.0,0.00018893,2]
[329801767,1718682562365,-153.0,0.00018893,2]
[329801768,1718682562387,-153.0,0.00018893,2]
[329801769,1718682562407,-153.0,0.00018893,2]
[329801770,1718682562426,-153.0,0.00018893,2]
[329801771,1718682562447,-153.0,0.00018893,2]
[329801772,1718682562467,-153.0,0.00018893,2]
[329801773,1718682562486,-153.0,0.00018893,2]
[329801774,1718682562506,-153.0,0.00018893,2]
[329801775,1718682562525,-153.0,0.00018893,2]
[329801776,1718682562545,-153.0,0.00018893,2]
[329801777,1718682562566,-153.0,0.00018893,2]
[329801778,1718682562586,-153.0,0.00018893,2]
[329801779,1718682562607,-153.0,0.00018893,2]
[329801780,1718682562631,-153.0,0.00018893,2]
[329801781,1718682562651,-153.0,0.00018893,2]
[329801782,1718682562671,-153.0,0.00018893,2]
[329801783,1718682562690,-153.0,0.00018893,2]
[329801784,1718682562710,-153.0,0.00018893,2]
[329801785,1718682562731,-153.0,0.00018893,2]
[329801786,1718682562752,-153.0,0.00018893,2]
[329801787,1718682562773,-153.0,0.00018893,2]
[329801788,1718682562796,-153.0,0.00018893,2]
[329801789,1718682562818,-153.0,0.00018893,2]
[329801790,1718682562836,-153.0,0.00018893,2]
[329801791,1718682562856,-153.0,0.00018893,2]
[329801792,1718682562878,-500.0,0.00018901,2]
[329801793,1718682562900,-500.0,0.00018901,2]
[329801794,1718682562921,-500.0,0.00018901,2]
[329801795,1718682562942,-500.0,0.00018902,2]
[329801796,1718682562961,-500.0,0.00018902,2]
[329801797,1718682562981,-500.0,0.00018902,2]
[329801798,1718682563004,-500.0,0.00018902,2]
[329801799,1718682563024,-500.0,0.00018921,2]
[329801800,1718682563043,-500.0,0.00018921,2]
[329801801,1718682563064,-500.0,0.00018921,2]
[329801802,1718682563083,-500.0,0.00018922,2]
[329801803,1718682563104,-500.0,0.00018922,2]
[329801804,1718682563124,-500.0,0.00018922,2]
[329801805,1718682563146,-500.0,0.00018922,2]
[329801806,1718682563166,-500.0,0.00018922,2]
[329801807,1718682563185,-500.0,0.00018999,2]
[329801808,1718682563208,-649.36,0.00018999,2]
[329801809,1718682563229,-500.0,0.00018999,2]
[329801810,1718682563249,-500.0,0.00018999,2]
[329801811,1718682563271,-500.0,0.00018999,2]
[329801812,1718682563294,-500.0,0.00018999,2]
[329801813,1718682563314,-500.0,0.00018999,2]
[329801814,1718682563332,-14825.99081895,0.00019,2]
[329801815,1718682563353,-500.0,0.00019175,2]
[329801816,1718682563373,-500.0,0.00019175,2]
[329801817,1718682563496,-500.0,0.00019175,2]
[329801818,1718682563521,-500.0,0.00019176,2]
[329801819,1718682563543,-500.0,0.00019176,2]
[329801820,1718682563564,-500.0,0.00019176,2]
[329801821,1718682563589,-500.0,0.00019176,2]
[329801822,1718682563609,-215.083788,0.00019178,2]
[329801823,1718682563632,-500.0,0.00019195,2]
[329801824,1718682563653,-500.0,0.00019195,2]
[329801825,1718682563677,-500.0,0.00019196,2]
[329801826,1718682563700,-500.0,0.00019196,2]
[329801827,1718682563721,-500.0,0.00019196,2]
[329801828,1718682563742,-500.0,0.00019196,2]
[329801829,1718682563763,-500.0,0.00019196,2]
[329801830,1718682563783,-521.85778329,0.00019272,2]
[329801831,1718682563802,-500.0,0.00019273,2]
[329801832,1718682563823,-649.36,0.00019273,2]
[329801833,1718682563847,-500.0,0.00019273,2]
[329801834,1718682563872,-500.0,0.00019273,2]
[329801835,1718682563893,-500.0,0.00019273,2]
[329801836,1718682563915,-500.0,0.00019273,2]
[329801837,1718682563936,-500.0,0.00019449,2]
[329801838,1718682563960,-500.0,0.0001945,2]
[329801839,1718682563980,-500.0,0.0001945,2]
[329801840,1718682564004,-500.0,0.0001945,2]
[329801841,1718682564032,-500.0,0.0001945,2]
[329801842,1718682564057,-500.0,0.00019469,2]
[329801843,1718682564083,-500.0,0.00019469,2]
[329801844,1718682564108,-500.0,0.0001947,2]
[329801845,1718682564134,-500.0,0.0001947,2]
[329801846,1718682564156,-500.0,0.0001947,2]
[329801847,1718682564180,-500.0,0.0001947,2]
[329801848,1718682564202,-451.35591157,0.00019547,2]
[329801849,1718682564331,-48.64408843,0.00019547,2]
[329801850,1718682564356,-649.36,0.00019547,2]
[329801851,1718682564382,-500.0,0.00019547,2]
[329801852,1718682564404,-288.04068284,0.00019547,2]
[329801853,1718682564426,-500.0,0.00019547,2]
[329801854,1718682564450,-500.0,0.00019547,2]
[329801855,1718682564473,-500.0,0.00019724,2]
[329801856,1718682564494,-340.72,0.00019724,2]
[329801857,1718682564515,-500.0,0.00019724,2]
[329801858,1718682564539,-500.0,0.00019724,2]
[329801859,1718682564561,-500.0,0.00019743,2]
[329801860,1718682564590,-500.0,0.00019743,2]
[329801861,1718682564613,-500.0,0.00019744,2]
[329801862,1718682564637,-115.82377222,0.00019744,2]
[329801863,1718682573114,-500.0,0.00018374,2]
[329801864,1718682573136,-500.0,0.00018648,2]
[329801865,1718682573163,-500.0,0.00018922,2]
[329801866,1718682573186,-500.0,0.00019196,2]
[329801867,1718682599051,339.09748795,0.00018374,2]
[329801873,1718682609841,500.0,0.00018901,2]
[329801874,1718682610130,500.0,0.00019175,2]
[329801875,1718682613259,500.0,0.00018374,2]
[329801876,1718682613631,500.0,0.00018648,2]
[329801877,1718682614205,500.0,0.00018922,2]
[329801878,1718682614495,500.0,0.00019196,2]
[329801879,1718682621411,500.0,0.00018901,2]
[329801880,1718682621752,236.38660562,0.00019175,2]
[329801881,1718682629361,428.81718355,0.00018901,2]
[329801920,1718682632742,-139.37281645,0.00018901,2]
[329801922,1718682632752,-187.24677477,0.00019175,2]
[329801924,1718682632765,-380.94322523,0.00019175,2]
[329801926,1718682632775,-500.0,0.00019449,2]
[329801927,1718682632785,-312.77816299,0.00019449,2]
[329802134,1718682643034,-255.41183701,0.00019449,2]
[329802136,1718682643044,-138.31295301,0.0001947,2]
[329802138,1718682643056,-361.68704699,0.0001947,2]
[329802140,1718682643065,-435.48573059,0.0001947,2]
[329802143,1718682643076,-64.51426941,0.0001947,2]
[329802146,1718682643085,-500.0,0.00019723,2]
[329802148,1718682643095,-568.19,0.00019723,2]
[329802150,1718682643104,-384.17622778,0.00019744,2]
[329802152,1718682643113,-500.0,0.00019744,2]
[329802154,1718682643123,-500.0,0.00019744,2]
[329802156,1718682643133,-500.0,0.00019744,2]
[329802158,1718682643142,-500.0,0.00019744,2]
[329802160,1718682643151,-500.0,0.00019821,2]
[329802162,1718682643161,-500.0,0.00019821,2]
[329802164,1718682643171,-500.0,0.00019997,2]
[329802166,1718682643180,-568.19,0.00019997,2]
[329802168,1718682643189,-10506.42285693,0.0002,2]
[329802181,1718682643310,-153.0,0.0002,2]
[329802184,1718682643321,-4361.53505865,0.0002,2]
[329802186,1718682643333,-582.33260953,0.0002,2]
[329802188,1718682643343,-606.56641311,0.0002,2]
[329802190,1718682643352,-500.0,0.00020017,2]
[329802192,1718682643362,-500.0,0.00020018,2]
[329802194,1718682643371,-41.41235115,0.00020018,2]
[329802196,1718682643385,-458.58764885,0.00020018,2]
[329802198,1718682643395,-500.0,0.00020018,2]
[329802200,1718682643405,-500.0,0.00020018,2]
[329802202,1718682643415,-500.0,0.00020018,2]
[329802205,1718682643425,-490.6,0.00020018,2]
[329802207,1718682643435,-500.0,0.00020095,2]
[329802209,1718682643444,-500.0,0.00020095,2]
[329802211,1718682643454,-500.0,0.00020271,2]
[329802212,1718682643462,-568.19,0.00020271,2]
[329802214,1718682643472,-500.0,0.00020292,2]
[329802216,1718682643481,-500.0,0.00020292,2]
[329802218,1718682643490,-282.307078,0.00020292,2]
[329802247,1718682643757,-217.692922,0.00020292,2]
[329802249,1718682643767,-500.0,0.00020292,2]
[329802251,1718682643777,-500.0,0.00020292,2]
[329802253,1718682643786,-218.40890782,0.00020369,2]
[329803000,1718682650616,-500.0,0.00018999,2]
[329803002,1718682650626,-500.0,0.00019273,2]
[329803004,1718682650635,-500.0,0.00019547,2]
[329803006,1718682650645,-500.0,0.00019821,2]
[329803008,1718682650654,-500.0,0.00020095,2]
[329803010,1718682650664,-409.28134447,0.00020192,2]
[329803012,1718682650674,-281.59109218,0.00020369,2]
[329803014,1718682650684,-500.0,0.00020369,2]
[329803016,1718682650693,-531.0,0.00020545,2]
[329803018,1718682650706,-568.19,0.00020545,2]
[329803020,1718682650715,-500.0,0.00020566,2]
[329803022,1718682650725,-500.0,0.00020566,2]
[329803024,1718682650734,-500.0,0.00020566,2]
[329803026,1718682650744,-500.0,0.00020566,2]
[329803028,1718682650753,-500.0,0.00020643,2]
[329803030,1718682650762,-568.19,0.00020819,2]
[329803032,1718682650771,-512.54,0.0002084,2]
[329803034,1718682650780,-500.0,0.0002084,2]
[329803035,1718682650790,-500.0,0.0002084,2]
[329803037,1718682650799,-500.0,0.0002084,2]
[329803039,1718682650808,-343.01,0.00020917,2]
[329803042,1718682650818,-2159.10337202,0.00021,2]
[329803043,1718682650827,-568.19,0.00021093,2]
[329803045,1718682650836,-500.0,0.00021114,2]
[329803048,1718682650845,-235.96,0.00021114,2]
[329803050,1718682650854,-520.8,0.00021114,2]
[329803051,1718682650863,-568.19,0.00021367,2]
[329803053,1718682650873,-326.64,0.00021388,2]
[329803055,1718682650882,-568.19,0.00021641,2]
[329803057,1718682650891,-568.19,0.00021915,2]
[329803060,1718682650901,-200.0,0.00021917,2]
[329803061,1718682650910,-166.666666,0.00021918,2]
[329803063,1718682650919,-468.77366544,0.00021999,2]
[329803065,1718682650929,-500.0,0.00021999,2]
[329803068,1718682650938,-500.0,0.00021999,2]
[329803069,1718682650947,-500.0,0.00021999,2]
[329803071,1718682650960,-500.0,0.00021999,2]
[329803074,1718682650969,-500.0,0.00021999,2]
[329803076,1718682650979,-519.72005283,0.00021999,2]
[329803078,1718682650988,-438.41995461,0.00021999,2]
[329803080,1718682650997,-500.0,0.00021999,2]
[329803082,1718682651007,-500.0,0.00021999,2]
[329803094,1718682651112,-500.0,0.00021999,2]
[329803097,1718682651127,-394.53105267,0.00022,2]
[329803099,1718682651138,-116823.24387832,0.00022,2]
[329803157,1718682651726,-186.10918699,0.00022,2]
[329803160,1718682651737,-333.3986771,0.00022,2]
[329805253,1718682674218,1985.85162039,9.999e-05,2]
[329807227,1718682732861,1582.54864688,0.0001,2]
[329807232,1718683541121,-275.88537646,0.000165,2]
[329807233,1718683541141,-190.41727371,0.00018253,2]
[329807234,1718683541161,-1625.54218032,0.00018537,2]
[329807235,1718683626181,-275.7555891,0.00018536,2]
[329807236,1718683626206,-2798.50454106,0.00018537,2]
[329807237,1718683646109,-269.05544481,0.00018537,2]
[329807238,1718683647111,-200.0,0.00018537,2]
[329807240,1718683769124,-7357.25795085,0.00018653,2]
[329807241,1718683774105,-2265.6495771,0.00018653,2]
[329807267,1718683835674,-4024.13558327,0.00018653,2]
[329807268,1718683835687,-3520.91147158,0.00018653,2]
[329807269,1718683835700,-461.00364573,0.000189,2]
[329807270,1718683835709,-500.0,0.00018921,2]
[329807271,1718683835719,-223.05369105,0.00018921,2]
[329807272,1718683835727,-153.0,0.00018946,2]
[329807273,1718683835738,-153.0,0.00018946,2]
[329807274,1718683835747,-153.0,0.00018946,2]
[329807275,1718683835759,-153.0,0.00018946,2]
[329807276,1718683835768,-153.0,0.00018946,2]
[329807277,1718683835779,-153.0,0.00018947,2]
[329807278,1718683835788,-153.0,0.00018947,2]
[329807279,1718683835799,-500.0,0.00018999,2]
[329807280,1718683835809,-500.0,0.00018999,2]
[329807281,1718683835819,-500.0,0.00018999,2]
[329807282,1718683835828,-165.966686,0.00019178,2]
[329807283,1718683835838,-500.0,0.00019273,2]
[329807284,1718683835847,-500.0,0.00019273,2]
[329807285,1718683835857,-500.0,0.00019273,2]
[329807286,1718683835866,-623.83551384,0.00019446,2]
[329807287,1718683835875,-503.63825843,0.00019546,2]
[329807288,1718683835884,-426.62860003,0.00019546,2]
[329807289,1718683835893,-500.0,0.00019546,2]
[329807290,1718683835903,-428.43949863,0.00019546,2]
[329807291,1718683835912,-500.98711381,0.00019546,2]
[329807292,1718683835921,-500.0,0.00019546,2]
[329807293,1718683835930,-523.86326512,0.00019546,2]
[329807294,1718683835940,-500.0,0.00019546,2]
[329807295,1718683835948,-500.0,0.00019546,2]
[329807296,1718683835958,-500.0,0.00019546,2]
[329807297,1718683835967,-502.98098192,0.00019546,2]
[329807298,1718683835976,-500.0,0.00019546,2]
[329807299,1718683835985,-500.0,0.00019546,2]
[329807300,1718683835995,-223.04920912,0.00019546,2]
[329807301,1718683836006,-500.0,0.00019546,2]
[329807302,1718683836015,-404.15589943,0.00019546,2]
[329807303,1718683836025,-500.0,0.00019546,2]
[329807304,1718683836034,-500.0,0.00019546,2]
[329807305,1718683836043,-500.0,0.00019546,2]
[329807306,1718683836052,-500.0,0.00019547,2]
[329807307,1718683836061,-500.0,0.00019547,2]
[329807308,1718683836070,-519.01989716,0.00019547,2]
[329807309,1718683836080,-500.0,0.00019722,2]
[329807310,1718683836089,-500.0,0.00019722,2]
[329807311,1718683836099,-500.0,0.00019722,2]
[329807312,1718683836211,-500.0,0.00019722,2]
[329807313,1718683836221,-500.0,0.00019722,2]
[329807314,1718683836231,-500.0,0.00019722,2]
[329807315,1718683836240,-512.38378805,0.00019722,2]
[329807316,1718683836251,-500.0,0.00019722,2]
[329807317,1718683836260,-500.0,0.00019722,2]
[329807318,1718683836269,-383.75303149,0.0001982,2]
[329807319,1718683836278,-500.0,0.0001982,2]
[329807320,1718683836287,-512.9964506,0.0001982,2]
[329807321,1718683836296,-500.0,0.0001982,2]
[329807322,1718683836305,-404.64423468,0.0001982,2]
[329807323,1718683836314,-304.58628384,0.0001982,2]
[329807324,1718683836323,-500.0,0.0001982,2]
[329807325,1718683836332,-500.0,0.0001982,2]
[329807326,1718683836341,-500.0,0.0001982,2]
[329807327,1718683836351,-500.0,0.0001982,2]
[329807328,1718683836360,-500.0,0.00019821,2]
[329807329,1718683836369,-500.0,0.00019821,2]
[329807330,1718683836379,-150.14370692,0.00019996,2]
[329807331,1718683836388,-500.0,0.00019996,2]
[329807332,1718683836397,-500.0,0.00019996,2]
[329807333,1718683836407,-500.0,0.00019996,2]
[329807334,1718683836416,-500.0,0.00019996,2]
[329807335,1718683836425,-322.79406323,0.00020054,2]
[329807336,1718683836434,-500.0,0.00020094,2]
[329807337,1718683836443,-500.0,0.00020094,2]
[329807338,1718683836453,-152.29,0.00020094,2]
[329807339,1718683836462,-500.0,0.00020094,2]
[329807340,1718683836471,-500.0,0.00020095,2]
[329807341,1718683836480,-500.0,0.00020095,2]
[329807342,1718683836489,-134.25100852,0.00020171,2]
[329807343,1718683836503,-16.74899148,0.00020171,2]
[329807344,1718683836512,-311.06,0.0002027,2]
[329807345,1718683836521,-500.0,0.0002027,2]
[329807346,1718683836530,-500.0,0.0002027,2]
[329807347,1718683836539,-1488.83335183,0.00020367,2]
[329807348,1718683836548,-60.05798999,0.00020367,2]
[329807349,1718683836560,-200.59848264,0.00020367,2]
[329807350,1718683836569,-1581.77175318,0.00020367,3]
[329807351,1718683836578,-113.90308009,0.00020367,2]
[329807352,1718683836589,-456.05503715,0.00020367,2]
[329807353,1718683836598,-246.8811431,0.00020367,2]
[329807354,1718683836607,-372.04426899,0.00020367,2]
[329807355,1718683836617,-500.0,0.00020367,2]
[329807356,1718683836627,-500.0,0.00020367,2]
[329807357,1718683836637,-500.0,0.00020367,2]
[329807358,1718683836646,-446.41774474,0.00020367,2]
[329807359,1718683836656,-500.0,0.00020367,2]
[329807360,1718683836666,-505.66372891,0.00020367,2]
[329807361,1718683836675,-506.06241771,0.00020367,2]
[329807362,1718683836685,-520.6453734,0.00020367,2]
[329807363,1718683836696,-1171.2205264,0.00020368,2]
[329807364,1718683836706,-701.83378351,0.00020368,2]
[329807394,1718683837791,-2839.43545061,0.00020368,2]
[329807395,1718683837804,-1929.68520268,0.00020368,2]
[329807446,1718683841429,-500.0,0.00020367,2]
[329807448,1718683841439,-9125.87796091,0.00020368,2]
[329807450,1718683841451,-42457.35863611,0.00020368,2]
[329807451,1718683841460,-431.52598638,0.00020368,2]
[329807452,1718683841469,-500.0,0.00020368,2]
[329807453,1718683841478,-555.91601585,0.00020368,2]
[329807454,1718683841487,-500.0,0.00020368,2]
[329807455,1718683841497,-500.0,0.00020368,2]
[329807457,1718683841509,-500.0,0.00020368,2]
[329807459,1718683841518,-520.93965635,0.00020369,15]
[329807461,1718683841527,-443.81738477,0.00020369,13]
[329807463,1718683841536,-4735.78574028,0.00020369,2]
[329807465,1718683841547,-2163.43126643,0.00020369,2]
[329807539,1718683843028,-436.10182982,0.00020367,2]
[329807540,1718683843038,-21308.9743365,0.00020369,2]
[329807542,1718683843184,-232.42720339,0.00020369,2]
[329807543,1718683843196,-660.44463536,0.00020369,2]
[329807615,1718683846236,-500.0,0.00019546,2]
[329807616,1718683846246,-461.81211323,0.00019722,2]
[329807617,1718683846258,-38.18788677,0.00019722,2]
[329807618,1718683846271,-840.73886579,0.00020369,2]
[329807622,1718684837191,-1985.85162039,0.00018899,2]
[329807623,1718684837213,-307.33576382,0.000189,2]
[329807624,1718684837234,-307.059542,0.00018905,2]
[329807625,1718684837254,-153.0,0.00018968,2]
[329807626,1718684837273,-265.6495821,0.00019178,2]
[329807627,1718684837293,-500.0,0.00019995,2]
[329807628,1718684837312,-150.0,0.00020166,2]
[329807629,1718684837333,-5271.96670823,0.00020239,2]
[329807630,1718684837354,-500.0,0.00020269,2]
[329807631,1718684837374,-500.0,0.00020269,2]
[329807632,1718684837395,-739.6,0.00020269,2]
[329807633,1718684837415,-1735.20868368,0.000203,2]
[329807634,1718684837442,-963.55636779,0.000203,2]
[329807635,1718684848114,-150.0,0.00020201,2]
[329807636,1718684848139,-2496.18519866,0.000203,2]
[329807637,1718684939986,-446.5132697,0.00014655,2]
[329807638,1718684940022,-446.5132697,0.00014655,2]
[329807639,1718684940073,-446.5132697,0.00014655,2]
[329807640,1718684940134,-152.34017623,0.00014655,2]
[329807641,1718684946169,-3715.04560686,0.00014655,2]
[329807642,1718684946194,-5206.92559219,0.00014992,2]
[329807643,1718684946214,-2233.26901095,0.00015103,2]
[329807644,1718684957133,-2973.65658124,0.00015103,2]
[329807645,1718684957152,-5206.92559219,0.00015597,2]
[329807646,1718684957172,-5206.92559219,0.00015643,2]
[329807647,1718684957193,-5206.92559219,0.00015924,2]
[329807648,1718684957214,-5206.92559219,0.00016273,2]
[329807649,1718684957234,-5206.92559219,0.00016654,2]
[329807650,1718684957253,-5206.92559219,0.00016878,2]
[329807651,1718684957273,-5206.92559219,0.00017039,2]
[329807652,1718684957294,-5206.92559219,0.00017455,2]
[329807653,1718684957314,-5206.92559219,0.000176,2]
[329807654,1718684957334,-5206.92559219,0.00018022,2]
[329807655,1718684957353,-5206.92559219,0.00018339,2]
[329807656,1718684957372,-2801.07530079,0.00018511,2]
[329807657,1718684958029,-2405.8502914,0.00018511,2]
[329807658,1718684958049,-5206.92559219,0.00018689,2]
[329807659,1718684958069,-204.89050922,0.000189,2]
[329807660,1718684958091,-5206.92559219,0.00019065,2]
[329807661,1718684958114,-5206.92559219,0.00019186,2]
[329807662,1718684958136,-5206.92559219,0.00019481,2]
[329807663,1718684958155,-5206.92559219,0.00019777,2]
[329807664,1718684992206,153.0,0.00018968,2]
[329808439,1718685042849,5076.95411406,0.00018968,2]
[329808726,1718685046336,-3858.11607846,0.0002,2]
[329808856,1718685048184,861.28052001,0.00015,2]
[329809115,1718685055588,4905.8901987,0.00018141,2]
[329809116,1718685055924,4905.8901987,0.00018465,2]
[329809117,1718685056276,3646.92884941,0.000188,2]
[329809118,1718685148909,1502.97942967,9.999e-05,2]
[329809119,1718685153994,154.86062544,9.999e-05,2]
[329809120,1718685157026,159.22422045,9.999e-05,2]
[329809121,1718685170288,262.37089328,9.999e-05,2]
[329809122,1718685170428,1344.59965403,9.999e-05,2]
[329809123,1718685178138,154.86062544,9.999e-05,2]
[329809124,1718685179757,208.60974119,9.999e-05,2]
[329809125,1718685186236,693.29996132,9.999e-05,2]
[329809126,1718685205066,195.31628,9.999e-05,2]
[329809135,1718685819102,154.86062544,9.999e-05,2]
[329809136,1718685825062,2096.70950351,9.999e-05,2]
[329809137,1718685843029,536.61545103,9.999e-05,2]
[329809138,1718686042127,-1308.85,0.000179,2]
[329809139,1718686042148,-919.3188232,0.00017934,2]
[329809140,1718686042168,-1344.59965403,0.00018482,2]
[329809141,1718686042188,-166.72628932,0.00018483,2]
[329809142,1718686042209,-208.34382459,0.00018483,2]
[329809143,1718686042230,-197.1,0.0001877,2]
[329809144,1718686042250,-196.38433803,0.00018797,2]
[329809145,1718686042271,-155.35376014,0.00018797,2]
[329809146,1718686043808,-1078.51942786,0.00018798,2]
[329809147,1718686043830,-218.56442259,0.00018798,2]
[329809148,1718686043854,-300.0,0.00018798,2]
[329809149,1718686043876,-273.68780043,0.00018798,2]
[329809150,1718686049156,-26.31219957,0.00018798,2]
[329809151,1718686049177,-4857.60811924,0.00018799,2]
[329809152,1718686050144,-1020.68693728,0.00018799,2]
[329809153,1718686050164,-508.60469196,0.00018799,2]
[329809154,1718686050188,-506.12723099,0.00018799,2]
[329809155,1718686050211,-500.0,0.00018799,2]
[329809156,1718686050235,-500.0,0.00018799,2]
[329809157,1718686050256,-513.75082226,0.00018799,2]
[329809158,1718686050279,-500.0,0.00018799,2]
[329809159,1718686050299,-500.0,0.00018799,2]
[329809160,1718686050320,-500.0,0.00018799,2]
[329809161,1718686050340,-500.0,0.00018799,2]
[329809162,1718686050362,-500.0,0.00018799,2]
[329809163,1718686050390,-500.0,0.00018799,2]
[329809164,1718686050411,-500.0,0.00018799,2]
[329809165,1718686050431,-500.0,0.00018799,2]
[329809166,1718686050453,-1372.80151656,0.000188,2]
[329809167,1718686051103,-2026.95473812,0.000188,2]
[329809168,1718686156130,-529.49121603,0.00018799,2]
[329809169,1718686156153,-500.0,0.00018799,2]
[329809170,1718686156176,-500.0,0.00018799,2]
[329809171,1718686156198,-870.03173283,0.000188,2]
[329809172,1718686157221,-5000.4880797,0.000188,2]
[329809173,1718686205699,5000.0,0.00013006,2]
[329809174,1718686218827,1380.09368757,0.0001,2]
[329809175,1718686218848,202.45495931,0.0001,2]
[329809257,1718686239446,-180.6,0.00018783,2]
[329809258,1718686239455,-1135.51085651,0.00018798,2]
[329809262,1718686239724,-446.44485077,0.00018798,2]
[329809263,1718686239734,-340.72,0.00018799,2]
[329809264,1718686239743,-500.0,0.00018799,2]
[329809265,1718686239754,-295.38379611,0.00018799,2]
[329809384,1718686244111,-204.61620389,0.00018799,2]
[329809386,1718686244121,-439.99873683,0.000188,2]
[329809839,1718686277911,275.88537646,0.000165,2]
[329809840,1718686283954,477.01771694,0.00018,2]
[329809841,1718686284011,154.84515485,9.999e-05,2]
[329809842,1718686285580,687.11689634,9.999e-05,2]
[329809843,1718686285693,1985.85162039,9.999e-05,2]
[329809844,1718686298407,157.89356808,9.999e-05,2]
[329809846,1718686301853,2440.9720851,0.00016805,2]
[329809847,1718686301873,2724.9629677,0.00016805,2]
[329809848,1718686302217,3513.93314507,0.0001725,2]
[329809849,1718686302239,1652.00190773,0.0001725,2]
[329809850,1718686303146,4667.43779184,0.00017271,2]
[329809852,1718686587613,1344.59965403,9.999e-05,2]
[329809872,1718687253255,-269.05544481,0.00016546,2]
[329809873,1718687355117,-659.9935105,0.0001659,2]
[329809874,1718687355138,-3607.9986958,0.0001659,2]
[329809875,1718687355157,-1344.2553679,0.00016671,2]
[329809876,1718687355178,-3598.8698238,0.00016706,2]
[329809877,1718687355198,-300.0,0.00017267,2]
[329809878,1718687355217,-456.91543891,0.00017268,2]
[329809879,1718687355237,-1502.63553111,0.00017268,2]
[329809880,1718687355255,-1780.8525826,0.0001727,2]
[329809881,1718687355282,-6144.80611623,0.0001727,2]
[329809882,1718687355302,-500.0,0.00017271,2]
[329809883,1718687355321,-158.72517932,0.00017665,2]
[329809884,1718687355353,-5271.96670823,0.00018426,2]
[329809885,1718687374157,-198.93827089,0.00018557,2]
[329809886,1718687374177,-187.85325105,0.00018557,2]
[329809887,1718687374199,-505.72828935,0.00018557,2]
[329809888,1718687374222,-500.0,0.00018557,2]
[329809889,1718687374246,-500.0,0.00018557,2]
[329809890,1718687374270,-500.0,0.00018557,2]
[329809891,1718687374294,-7.00313757,0.00018557,2]
[329809931,1718687433550,-302.0,0.00018557,2]
[329809971,1718687440033,-190.99686243,0.00018557,2]
[329809972,1718687440043,-500.0,0.00018557,2]
[329809973,1718687440053,-500.0,0.00018557,2]
[329809974,1718687440063,-500.0,0.00018557,2]
[329809976,1718687440074,-504.81785567,0.00018557,2]
[329809977,1718687440084,-500.0,0.00018557,2]
[329809978,1718687440094,-500.0,0.00018557,2]
[329809981,1718687440264,-500.0,0.00018557,2]
[329809982,1718687440280,-500.0,0.00018557,2]
[329809983,1718687440290,-500.0,0.00018557,2]